bitfinex-derivatives/quotes_SOLF0:USTF0_20260308
["timestamp","ask_amount","ask_price","bid_price","bid_amount"]
[1772981262124,10.974,82.016,81.98,6.49340739]
[1772981262524,17.71816553,82.016,81.98,6.49340739]
[1772981262822,17.71816553,82.016,81.98,10.45841793]
[1772981263615,6.74416553,82.016,81.981,6.49881716]
[1772981265721,6.74416553,82.016,81.98,3.96501054]
[1772981265927,6.74416553,82.014,81.973,6.5087174]
[1772981266120,6.74416553,82.012,81.973,6.5087174]
[1772981267619,6.74416553,82.009,81.955,6.51278362]
[1772981267826,6.74416553,82.007,81.955,6.51278362]
[1772981268017,6.74416553,82.005,81.955,6.51278362]
[1772981268222,6.74416553,82.003,81.955,6.51278362]
[1772981269214,6.74416553,82.003,81.96,3.96501054]
[1772981269526,6.74416553,82.003,81.961,6.50849473]
[1772981269720,6.74416553,82.003,81.97,3.96501054]
[1772981270022,6.74416553,82.003,81.971,6.50849473]
[1772981270326,6.74416553,82.029,81.971,6.50849473]
[1772981270518,6.74416553,82.027,81.971,6.50849473]
[1772981270722,3.96501054,82.03,81.971,6.50849473]
[1772981270723,6.74416553,82.025,81.971,6.50849473]
[1772981270919,10.974,82.013,81.971,6.50849473]
[1772981271426,6.74416553,82.014,81.971,6.50849473]
[1772981272123,6.74416553,82.026,81.981,6.46695558]
[1772981272926,6.74416553,82.026,81.982,6.47159196]
[1772981273118,10.972,82.025,81.982,6.47159196]
[1772981273321,6.74416553,82.023,81.97,10.43535499]
[1772981273628,6.74416553,82.021,81.971,6.47034445]
[1772981273925,6.74416553,82.019,81.971,6.47034445]
[1772981274922,6.74416553,82.019,81.98,3.96501054]
[1772981275929,6.74416553,82.019,81.98,10.48639346]
[1772981276423,6.74416553,82.018,81.98,3.96501054]
[1772981277729,6.74416553,82.018,81.98,3.96375307]
[1772981278527,6.74416553,82.028,81.99,3.96375307]
[1772981278732,6.74416553,82.026,81.99,3.96375307]
[1772981278927,16.53943429,82.025,81.99,3.96375307]
[1772981279134,16.53943429,82.024,81.99,3.96375307]
[1772981279333,6.74416553,82.024,81.99,3.96375307]
[1772981280126,6.74416553,82.024,82.0,3.96375307]
[1772981280527,6.74416553,82.024,81.991,6.52919038]
[1772981281537,6.74416553,82.035,81.991,6.52919038]
[1772981282042,15.19756887,82.069,81.944,21.967]
[1772981282043,6.74416553,82.065,82.02,3.96375307]
[1772981282232,6.74416553,82.063,82.02,3.96375307]
[1772981282538,6.74416553,82.059,82.02,3.96375307]
[1772981282737,11.35876892,82.072,82.02,3.96375307]
[1772981282738,7.04450631,82.057,82.02,3.96375307]
[1772981282933,7.04450631,82.053,82.02,3.96375307]
[1772981284035,7.01083794,82.051,82.0,3.96375307]
[1772981284336,170.436,82.146,81.981,6.47792974]
[1772981284337,7.01083794,82.039,81.981,6.47792974]
[1772981284538,3.96375307,82.04,81.981,6.47792974]
[1772981284539,7.01083794,82.037,81.981,6.47792974]
[1772981284739,7.01083794,82.037,81.99,3.96375307]
[1772981285039,7.01083794,82.037,82.0,3.96375307]
[1772981288243,11.93980748,82.07,81.95,12.2]
[1772981288244,7.01083794,82.049,82.011,6.47792974]
[1772981288442,11.35876892,82.07,82.011,6.47792974]
[1772981288443,7.01083794,82.062,82.011,6.47792974]
[1772981288636,7.01083794,82.06,82.011,6.47792974]
[1772981288841,7.01083794,82.051,82.01,3.96375307]
[1772981289743,7.01083794,82.051,82.011,10.974]
[1772981290138,7.01083794,82.051,82.012,6.47792974]
[1772981291245,7.01083794,82.063,82.021,6.47792974]
[1772981291445,7.01083794,82.063,82.03,3.96375307]
[1772981293941,7.01083794,82.061,82.02,3.96375307]
[1772981297239,7.01083794,82.061,82.021,6.33781173]
[1772981298734,7.01083794,82.062,82.023,6.47792974]
[1772981299034,7.01083794,82.062,82.03,3.96375307]
[1772981299435,7.01083794,82.062,82.023,6.47792974]
[1772981299840,7.01083794,82.062,82.027,10.972]
[1772981302542,7.01083794,82.062,82.028,6.2458029]
[1772981303145,7.01083794,82.073,82.031,6.18652117]
[1772981304841,7.01083794,82.073,82.033,10.971]
[1772981306242,7.01083794,82.073,82.034,6.02696526]
[1772981308648,7.01083794,82.068,82.023,5.90778023]
[1772981310742,7.01083794,82.068,82.025,10.972]
[1772981311843,7.01083794,82.079,82.032,5.73150164]
[1772981312748,7.01083794,82.079,82.035,5.61276283]
[1772981314346,7.01083794,82.079,81.997,648.43156506]
[1772981314347,7.01083794,82.079,82.041,5.3664312]
[1772981317645,6.09182025,82.077,82.028,10.972]
[1772981317851,6.09182025,82.069,82.028,10.972]
[1772981319946,6.09182025,82.08,82.031,5.1009228]
[1772981320752,6.09182025,82.08,82.032,10.971]
[1772981320958,6.09182025,82.099,82.051,5.01457963]
[1772981321151,3.96375307,82.1,82.051,5.01457963]
[1772981321152,6.09182025,82.097,82.051,5.01457963]
[1772981321458,6.09182025,82.085,82.04,3.96375307]
[1772981321757,6.09182025,82.085,82.038,5.01432891]
[1772981322854,3.96375307,82.09,82.038,5.01432891]
[1772981322855,6.09182025,82.083,82.038,5.01432891]
[1772981329451,6.09182025,82.083,82.039,10.97]
[1772981329857,6.09182025,82.083,82.04,3.96375307]
[1772981330659,6.09182025,82.083,82.04,8.64367749]
[1772981330860,6.09182025,82.083,82.042,10.97]
[1772981331159,6.09182025,82.083,82.043,4.63755387]
[1772981339466,6.09182025,82.083,82.044,10.97]
[1772981339768,6.09182025,82.083,82.044,15.36166365]
[1772981341662,6.09182025,82.083,82.0,12.2]
[1772981341861,6.09182025,82.083,81.992,30.29972648]
[1772981341862,6.09182025,82.061,82.015,4.38537381]
[1772981342064,6.09182025,82.059,82.001,4.34805951]
[1772981342464,6.09182025,82.059,82.016,4.30267001]
[1772981343272,6.09182025,82.059,82.021,4.23670675]
[1772981345260,16.26917654,82.078,82.031,3.97740298]
[1772981345461,5.30417654,82.077,82.031,3.97740298]
[1772981346971,5.30417654,82.085,82.031,3.97740298]
[1772981347270,5.30417654,82.083,82.031,3.97740298]
[1772981347571,5.30417654,82.081,82.031,3.97740298]
[1772981347768,5.30417654,82.079,82.032,10.971]
[1772981348874,5.30417654,82.077,82.032,10.971]
[1772981349573,5.30417654,82.077,82.032,14.71785758]
[1772981349864,5.30417654,82.077,82.033,3.74685758]
[1772981353072,5.30417654,82.077,82.035,3.61134113]
[1772981354569,5.30417654,82.075,82.035,3.61134113]
[1772981355870,5.30417654,82.073,82.035,3.61134113]
[1772981357063,5.30417654,82.073,82.037,10.971]
[1772981357269,5.30417654,82.073,82.038,3.49354469]
[1772981362675,5.30417654,82.073,82.039,10.97]
[1772981362873,5.30417654,82.073,82.04,3.33296052]
[1772981364278,5.30417654,82.073,82.039,10.97]
[1772981366183,5.30417654,82.073,82.04,3.19368221]
[1772981366979,5.30417654,82.073,82.042,10.97]
[1772981367378,5.30417654,82.073,82.043,3.17436667]
[1772981367983,5.30417654,82.073,82.044,14.11736415]
[1772981368180,5.30417654,82.089,82.045,3.14736415]
[1772981368483,5.30417654,82.087,82.045,3.14736415]
[1772981368683,5.30417654,82.085,82.045,3.14736415]
[1772981369882,5.30417654,82.085,82.046,10.969]
[1772981371884,5.30417654,82.085,82.047,3.05904825]
[1772981372082,5.30417654,82.085,82.048,10.969]
[1772981372493,5.30417654,82.085,82.048,13.9324766]
[1772981373480,5.30417654,82.085,82.049,2.92714862]
[1772981375687,5.30417654,82.085,82.052,10.969]
[1772981377189,5.30417654,82.085,82.036,2.86273258]
[1772981377488,5.17315081,82.083,82.03,6.82027703]
[1772981377688,5.17315081,82.081,82.031,2.86291567]
[1772981377988,5.17315081,82.079,82.031,2.86291567]
[1772981378385,5.17315081,82.079,82.015,2.84552091]
[1772981378589,5.17315081,82.069,82.02,2.84552091]
[1772981378788,5.17315081,82.067,82.02,2.84552091]
[1772981378987,5.17315081,82.059,82.02,2.84552091]
[1772981382785,5.17315081,82.048,81.994,2.90818831]
[1772981382990,5.17315081,82.048,81.998,2.90818831]
[1772981383798,5.17315081,82.044,81.998,13.88418831]
[1772981384392,5.17315081,82.044,81.999,2.86330966]
[1772981384894,5.17315081,82.044,82.0,3.95736136]
[1772981385193,5.17315081,82.044,82.001,2.84631895]
[1772981386894,5.17315081,82.041,81.991,2.82811195]
[1772981387793,5.17315081,82.041,81.99,14.93436136]
[1772981387794,5.17315081,82.037,81.992,13.78345504]
[1772981387994,5.17315081,82.037,81.993,2.80645504]
[1772981390999,5.17315081,82.035,81.993,2.80645504]
[1772981391797,5.17315081,82.032,81.993,2.80645504]
[1772981392596,10.972,82.03,81.993,2.80645504]
[1772981392792,5.17315081,82.029,81.993,2.80645504]
[1772981393806,5.17315081,82.025,81.982,2.71380629]
[1772981394693,5.17315081,82.025,81.975,10.979]
[1772981394901,5.17315081,82.021,81.975,10.979]
[1772981396301,5.17315081,82.021,81.981,2.62432783]
[1772981396698,5.17315081,82.021,81.99,3.95736136]
[1772981397206,5.17315081,82.021,81.981,2.62432783]
[1772981398204,5.17315081,82.021,81.98,3.95736136]
[1772981399809,5.17315081,82.021,81.98,3.96348322]
[1772981403408,5.17315081,82.021,81.98,6.42849075]
[1772981403609,5.17315081,82.021,81.981,2.4646861]
[1772981406920,5.17315081,82.021,81.983,2.39772051]
[1772981407120,5.17315081,82.021,81.974,299.01731144]
[1772981407121,4.83498034,82.029,81.991,2.38107973]
[1772981407816,4.83498034,82.028,81.991,2.38107973]
[1772981408813,4.83498034,82.049,82.001,2.34199149]
[1772981409013,4.83498034,82.04,82.001,2.34199149]
[1772981409419,4.83498034,82.04,81.991,2.32573078]
[1772981410821,4.83498034,82.035,81.991,2.32573078]
[1772981414826,4.83498034,82.035,81.994,2.15630844]
[1772981416432,4.83498034,82.035,81.996,2.13105273]
[1772981417228,4.83498034,82.035,81.997,10.976]
[1772981417431,4.83498034,82.035,81.997,13.09222748]
[1772981418533,4.83498034,82.035,82.0,3.96348322]
[1772981424538,4.83498034,82.035,81.998,1.98460049]
[1772981427240,4.83498034,82.033,81.998,1.98460049]
[1772981431842,4.83498034,82.033,82.0,1.91447222]
[1772981432345,4.83498034,82.044,82.0,1.91447222]
[1772981432545,4.83498034,82.042,82.0,1.91447222]
[1772981432745,4.53661475,82.04,82.0,1.91447222]
[1772981432946,4.53661475,82.038,82.0,1.91447222]
[1772981433147,14.45642502,82.037,82.0,1.91447222]
[1772981433342,14.45642502,82.037,81.99,3.96348322]
[1772981433343,9.91981027,82.036,82.005,1.81262541]
[1772981433647,4.53661475,82.037,82.005,1.81262541]
[1772981433848,9.92164475,82.036,82.005,1.81262541]
[1772981434146,4.53661475,82.037,82.005,1.81262541]
[1772981434342,9.92159921,82.036,82.005,1.81262541]
[1772981434538,4.53661475,82.037,82.005,1.81262541]
[1772981434742,9.92214332,82.036,82.005,1.81262541]
[1772981434939,4.53661475,82.037,82.005,1.81262541]
[1772981435139,9.9235638,82.036,82.005,1.81262541]
[1772981435350,4.53661475,82.037,82.005,1.81262541]
[1772981435651,9.92487554,82.036,82.005,1.81262541]
[1772981435845,4.53661475,82.037,82.005,1.81262541]
[1772981436041,9.92487736,82.036,82.005,1.81262541]
[1772981436239,4.53661475,82.037,82.005,1.81262541]
[1772981436444,9.92514295,82.036,82.005,1.81262541]
[1772981436650,4.53661475,82.037,82.005,1.81262541]
[1772981436949,9.9262044,82.036,82.005,1.81262541]
[1772981437145,4.53661475,82.037,82.005,1.81262541]
[1772981437445,9.926116,82.036,82.005,1.81262541]
[1772981437646,4.53661475,82.035,82.006,10.975]
[1772981437948,4.53661475,82.035,82.007,1.7117645]
[1772981439454,4.53661475,82.035,82.013,10.974]
[1772981442657,4.53661475,82.035,82.007,1.7117645]
[1772981444356,4.53661475,82.035,81.997,10.976]
[1772981447963,4.53661475,82.035,81.997,12.60259464]
[1772981448462,4.53661475,82.035,81.997,1.62659464]
[1772981449156,4.53661475,82.031,81.987,1.6258441]
[1772981449355,4.53661475,82.029,81.976,330.10687366]
[1772981449563,9.91901532,82.028,81.976,330.10687366]
[1772981449762,4.53661475,82.026,81.976,330.10687366]
[1772981449961,4.53661475,82.024,81.976,330.10687366]
[1772981450156,4.53661475,82.022,81.976,1.6258441]
[1772981450362,4.53661475,82.02,81.976,1.6258441]
[1772981450563,4.53661475,82.018,81.976,1.6258441]
[1772981450765,4.53661475,82.014,81.976,1.6258441]
[1772981455275,4.53661475,82.014,81.98,3.96348322]
[1772981455475,4.53661475,82.014,81.981,1.49551952]
[1772981457681,4.53661475,82.029,81.982,1.53986069]
[1772981457876,4.53661475,82.027,81.991,1.53986069]
[1772981459882,4.53661475,82.027,81.994,1.51804849]
[1772981460775,4.53661475,82.039,81.994,1.51804849]
[1772981460975,4.53661475,82.039,82.01,3.96253201]
[1772981461181,4.53661475,82.039,82.01,5.46583029]
[1772981461678,4.53661475,82.061,82.011,1.50341704]
[1772981461875,4.53661475,82.058,82.011,1.50341704]
[1772981462079,4.53661475,82.057,82.02,3.96253201]
[1772981463672,4.53661475,82.057,82.02,16.39810641]
[1772981463875,4.53661475,82.057,81.994,324.51632285]
[1772981463876,4.22000246,82.067,82.031,1.4625744]
[1772981464270,4.22000246,82.067,82.04,3.96253201]
[1772981466372,4.13385321,82.078,82.041,1.39549182]
[1772981466781,4.13385321,82.078,82.05,3.96253201]
[1772981467278,4.13385321,82.078,82.041,1.39549182]
[1772981468374,4.13385321,82.078,82.01,62.0]
[1772981468375,4.13385321,82.094,82.051,1.31553577]
[1772981469478,4.13385321,82.089,82.04,3.96253201]
[1772981469692,4.13385321,82.079,82.03,3.96253201]
[1772981469881,4.13385321,82.079,82.031,1.33133576]
[1772981470684,4.13385321,82.079,82.04,3.96253201]
[1772981471384,4.13385321,82.079,82.031,1.33133576]
[1772981473784,4.13385321,82.079,82.04,3.96253201]
[1772981475288,4.13385321,82.079,82.04,5.21581726]
[1772981475486,4.13385321,82.09,82.04,3.96253201]
[1772981475684,4.13385321,82.09,82.051,1.25348154]
[1772981477782,4.13385321,82.09,82.06,3.96253201]
[1772981478785,4.13385321,82.107,82.061,1.24578916]
[1772981478982,4.13385321,82.107,82.08,3.96253201]
[1772981480984,4.13385321,82.137,82.091,1.20770613]
[1772981481188,4.13385321,82.137,82.1,3.96253201]
[1772981481394,4.13385321,82.16,82.12,3.96253201]
[1772981483191,4.13385321,82.16,82.121,1.24303073]
[1772981483486,4.13385321,82.172,82.14,3.96253201]
[1772981483691,4.13385321,82.184,82.14,5.20570829]
[1772981484290,473.98183124,82.222,82.099,330.32191874]
[1772981484291,4.13385321,82.179,82.12,3.96253201]
[1772981484794,4.13385321,82.179,82.13,3.96253201]
[1772981485294,4.13385321,82.179,82.132,1.14260645]
[1772981485991,4.13385321,82.179,82.13,3.96253201]
[1772981486191,4.13385321,82.179,82.122,10.959]
[1772981486392,4.13385321,82.179,82.12,3.96253201]
[1772981486600,4.13385321,82.169,82.119,1.13636593]
[1772981487796,4.13385321,82.169,82.122,1.10858728]
[1772981488294,4.13385321,82.169,82.13,5.06481853]
[1772981488495,4.13385321,82.169,82.124,10.959]
[1772981491792,4.13385321,82.169,82.13,3.96253201]
[1772981492999,4.13385321,82.169,82.131,1.19479776]
[1772981493493,4.13385321,82.169,82.13,3.96253201]
[1772981495910,4.13385321,82.169,82.131,1.18971316]
[1772981497098,4.13385321,82.169,82.131,12.14771316]
[1772981499506,4.17078009,82.181,82.136,1.21526129]
[1772981499703,4.17078009,82.181,82.141,1.21526129]
[1772981500601,4.17078009,82.193,82.16,3.96253201]
[1772981500802,4.17078009,82.216,82.171,1.29806001]
[1772981501804,4.17078009,82.216,82.18,3.96253201]
[1772981502408,4.17078009,82.216,82.18,5.24994979]
[1772981502609,4.17078009,82.216,82.18,16.20194979]
[1772981502808,207.40572033,82.23,82.18,16.20194979]
[1772981502809,203.44318832,82.23,82.181,1.29608002]
[1772981503210,3.96253201,82.22,82.17,3.96253201]
[1772981503411,4.17078009,82.219,82.17,3.96253201]
[1772981503811,4.17078009,82.209,82.157,1.29085441]
[1772981504210,3.96253201,82.2,82.157,1.29085441]
[1772981504417,4.17078009,82.199,82.149,10.956]
[1772981506912,4.17078009,82.189,82.143,1.28567562]
[1772981510219,4.17078009,82.189,82.144,10.956]
[1772981512910,4.17078009,82.179,82.12,3.96253201]
[1772981513109,4.17078009,82.159,82.113,325.72981573]
[1772981514617,4.17078009,82.159,82.114,10.96]
[1772981518618,4.17078009,82.149,82.113,325.72981573]
[1772981520326,10.959,82.129,82.082,1.13692621]
[1772981524525,10.959,82.129,82.072,10.966]
[1772981525229,10.959,82.129,82.08,3.95173089]
[1772981525427,10.96,82.121,82.08,3.95173089]
[1772981526324,10.961,82.114,82.07,33.02750415]
[1772981526519,3.95173089,82.11,82.058,29.08885623]
[1772981527929,10.961,82.108,82.058,29.08885623]
[1772981528918,10.961,82.108,82.05,3.95173089]
[1772981528919,3.95173089,82.13,82.081,29.09223181]
[1772981530130,3.95173089,82.14,82.081,29.09223181]
[1772981531231,13.75306022,82.16,82.1,33.03470412]
[1772981531422,9.80132933,82.159,82.1,33.03470412]
[1772981531626,3.95173089,82.16,82.11,3.95173089]
[1772981531837,9.80325586,82.159,82.11,3.95173089]
[1772981532032,9.80325586,82.158,82.1,33.03470412]
[1772981532329,3.95173089,82.16,82.1,33.03470412]
[1772981532531,3.95173089,82.15,82.1,33.03470412]
[1772981532926,10.956,82.149,82.1,33.03470412]
[1772981534232,10.957,82.142,82.09,3.95173089]
[1772981534435,3.95173089,82.13,82.08,3.95173089]
[1772981534731,9.80105366,82.141,82.08,3.95173089]
[1772981534732,3.95173089,82.14,82.08,3.95173089]
[1772981534933,3.95173089,82.15,82.09,33.04146483]
[1772981535737,10.956,82.145,82.1,33.04147143]
[1772981536835,10.958,82.136,82.1,33.04147143]
[1772981539436,3.95173089,82.16,82.1,29.08974054]
[1772981539641,3.95173089,82.17,82.111,29.09943762]
[1772981539835,9.8030026,82.169,82.111,29.09943762]
[1772981540036,9.8030026,82.168,82.111,29.09943762]
[1772981540236,9.8030026,82.167,82.111,29.09943762]
[1772981540432,10.955,82.152,82.111,29.09943762]
[1772981544141,10.955,82.152,82.12,3.95173089]
[1772981544447,10.955,82.152,82.12,33.0485637]
[1772981552049,10.954,82.164,82.12,33.0485637]
[1772981552447,10.954,82.164,82.131,29.10531246]
[1772981553141,10.953,82.174,82.14,3.95173089]
[1772981553448,10.953,82.174,82.14,33.02091938]
[1772981553846,9.84821254,82.173,82.116,29.06917878]
[1772981554049,9.84821254,82.172,82.121,29.06917878]
[1772981554251,9.85208253,82.171,82.121,29.06917878]
[1772981554452,9.85208253,82.17,82.121,29.06917878]
[1772981554645,11.2839818,82.189,82.121,29.06917878]
[1772981554851,3.95173089,82.18,82.121,29.06917878]
[1772981555053,9.853642,82.179,82.121,29.06917878]
[1772981555248,3.95173089,82.18,82.121,29.06917878]
[1772981555249,9.853642,82.178,82.121,29.06917878]
[1772981555455,9.853642,82.177,82.121,29.06917878]
[1772981555653,9.853642,82.176,82.121,29.06917878]
[1772981555856,10.954,82.162,82.121,29.06917878]
[1772981556548,9.86571735,82.161,82.111,29.06419945]
[1772981556752,9.86571735,82.16,82.111,29.06419945]
[1772981556954,10.956,82.148,82.111,29.06419945]
[1772981557350,11.2839818,82.175,82.111,29.06419945]
[1772981557550,30.03594794,82.217,82.07,62.0]
[1772981557551,9.86672195,82.174,82.121,29.06419945]
[1772981557759,9.86672195,82.173,82.121,29.06419945]
[1772981557960,9.86672195,82.172,82.121,29.06419945]
[1772981558258,9.86672195,82.171,82.121,29.06419945]
[1772981558451,9.86672195,82.17,82.121,29.06419945]
[1772981558651,9.86672195,82.169,82.121,29.06419945]
[1772981558854,10.954,82.165,82.121,29.06419945]
[1772981562252,10.954,82.165,82.131,29.06444494]
[1772981562859,10.952,82.176,82.131,29.06444494]
[1772981563062,9.82739783,82.175,82.131,29.06444494]
[1772981563262,9.82739783,82.174,82.131,29.06444494]
[1772981563465,9.82739783,82.173,82.131,29.06444494]
[1772981563662,9.82739783,82.172,82.131,29.06444494]
[1772981563857,10.953,82.17,82.131,29.06444494]
[1772981564058,9.82739783,82.169,82.131,29.06444494]
[1772981564258,9.82739783,82.168,82.131,29.06444494]
[1772981564463,10.953,82.17,82.141,29.0624982]
[1772981564665,9.82753003,82.169,82.141,29.0624982]
[1772981564864,9.82753003,82.168,82.141,29.0624982]
[1772981565067,10.953,82.17,82.141,29.0624982]
[1772981565261,9.82753003,82.169,82.141,29.0624982]
[1772981565465,10.953,82.17,82.141,29.0624982]
[1772981565666,9.82717286,82.169,82.141,29.0624982]
[1772981565869,10.953,82.17,82.141,29.0624982]
[1772981566063,9.82707926,82.169,82.141,29.0624982]
[1772981566262,10.953,82.17,82.141,29.0624982]
[1772981566871,10.953,82.173,82.141,29.0624982]
[1772981571167,10.953,82.166,82.141,29.0624982]
[1772981571367,63.11074332,82.175,82.141,29.0624982]
[1772981572873,74.06274332,82.175,82.141,29.0624982]
[1772981575570,63.11074332,82.175,82.15,3.95173089]
[1772981575770,63.11074332,82.175,82.151,29.06236332]
[1772981576478,10.95,82.193,82.161,13.55907813]
[1772981576674,63.23930408,82.193,82.161,13.55907813]
[1772981576873,63.23930408,82.193,82.18,3.95173089]
[1772981576874,30.4980887,82.193,82.18,3.95173089]
[1772981577076,8.91008871,82.193,82.18,3.95173089]
[1772981577271,18.86248228,82.224,82.18,3.95173089]
[1772981577466,18.86248228,82.224,82.108,30.29972648]
[1772981577467,18.86248228,82.224,82.19,3.95173089]
[1772981577673,18.86248228,82.224,82.18,3.95173089]
[1772981577978,18.86248228,82.224,82.099,12.19]
[1772981577979,10.946,82.226,82.19,3.95173089]
[1772981578671,18.86259681,82.248,82.2,3.95173089]
[1772981579075,18.89783768,82.229,82.176,10.952]
[1772981579275,18.89783768,82.228,82.19,3.95173089]
[1772981580775,10.945,82.227,82.19,3.95173089]
[1772981581078,18.90809159,82.226,82.19,3.95173089]
[1772981581675,18.90809159,82.226,82.19,3.94349209]
[1772981584677,18.91732431,82.272,82.22,3.94349209]
[1772981584871,18.91732431,82.271,82.23,3.94349209]
[1772981585779,18.91732431,82.271,82.23,10.945]
[1772981585981,18.91732431,82.271,82.23,14.88849209]
[1772981587273,18.91634749,82.269,82.22,3.94349209]
[1772981587782,18.91634749,82.269,82.21,3.94349209]
[1772981588383,18.91634749,82.269,82.22,3.94349209]
[1772981588982,18.91634749,82.269,82.23,3.94349209]
[1772981589180,63.29483611,82.272,82.23,3.94349209]
[1772981589887,63.29483611,82.272,82.23,14.88849209]
[1772981590079,63.29483611,82.272,82.23,3.94349209]
[1772981590281,63.29483611,82.272,82.24,3.94349209]
[1772981590980,63.29483611,82.272,82.245,10.943]
[1772981591182,18.92505532,82.271,82.23,3.94349209]
[1772981591986,18.92505532,82.271,82.233,10.945]
[1772981592383,63.29483611,82.272,82.23,3.94349209]
[1772981592585,63.29483611,82.272,82.24,3.94349209]
[1772981592783,82.21805013,82.272,82.23,3.94349209]
[1772981593487,18.92321402,82.272,82.24,3.94349209]
[1772981593683,18.92366218,82.284,82.24,3.94349209]
[1772981594786,18.92366218,82.284,82.241,10.943]
[1772981595985,18.92366218,82.284,82.24,3.94349209]
[1772981595986,18.92366218,82.284,82.249,10.942]
[1772981598489,18.92366218,82.284,82.241,10.943]
[1772981601285,18.92366218,82.284,82.248,10.942]
[1772981604700,18.92366218,82.284,82.23,3.94349209]
[1772981605097,18.92366218,82.284,82.195,12.19]
[1772981605390,18.92366218,82.284,82.23,3.94349209]
[1772981605695,18.92366218,82.284,82.24,3.94349209]
[1772981605898,18.92366218,82.284,82.23,3.94349209]
[1772981606394,18.92366218,82.284,82.241,10.943]
[1772981607298,22.8386017,82.3,82.25,3.94349209]
[1772981607497,22.8386017,82.3,82.24,3.94349209]
[1772981607897,22.8386017,82.3,82.24,14.88749209]
[1772981609599,18.87509381,82.297,82.247,10.943]
[1772981610499,18.87509381,82.297,82.24,3.94349209]
[1772981610500,10.937,82.293,82.24,3.94349209]
[1772981610800,18.84392567,82.289,82.24,3.94349209]
[1772981611803,18.84392567,82.289,82.243,10.943]
[1772981612493,18.84392567,82.289,82.24,3.94349209]
[1772981612702,18.84392567,82.289,82.235,10.944]
[1772981612899,18.84392567,82.289,82.24,3.94349209]
[1772981613101,18.84392567,82.289,82.242,10.943]
[1772981614904,18.8409824,82.287,82.24,3.94349209]
[1772981615306,18.8409824,82.287,82.234,10.944]
[1772981616008,18.84094947,82.285,82.234,10.944]
[1772981616709,10.938,82.281,82.234,10.944]
[1772981617008,18.84094947,82.285,82.241,10.943]
[1772981617611,18.83891526,82.283,82.241,10.943]
[1772981618109,18.83891526,82.283,82.24,3.94349209]
[1772981618709,18.8434907,82.273,82.24,3.94349209]
[1772981618907,18.8434907,82.273,82.23,3.94349209]
[1772981620312,18.84346956,82.271,82.223,10.946]
[1772981620711,18.85827865,82.269,82.223,10.946]
[1772981623215,18.84512925,82.267,82.223,10.946]
[1772981625717,18.84512925,82.267,82.232,10.945]
[1772981627218,18.84177096,82.265,82.232,10.945]
[1772981628017,18.84177096,82.265,82.225,10.946]
[1772981628213,18.84174633,82.263,82.21,3.94349209]
[1772981628418,18.84174633,82.261,82.21,3.94349209]
[1772981628619,18.8303512,82.259,82.21,3.94349209]
[1772981628817,18.8303512,82.257,82.21,3.94349209]
[1772981629017,18.8303512,82.255,82.21,3.94349209]
[1772981629219,18.8303512,82.253,82.21,3.94349209]
[1772981629817,18.8303512,82.253,82.213,10.947]
[1772981630018,18.83028923,82.272,82.23,3.94349209]
[1772981630217,9.81809316,82.271,82.23,3.94349209]
[1772981630418,18.83028923,82.272,82.23,3.94349209]
[1772981630717,9.81745058,82.271,82.23,3.94349209]
[1772981630917,18.83028923,82.272,82.23,3.94349209]
[1772981631115,9.81745344,82.271,82.231,10.945]
[1772981631419,18.82263458,82.291,82.24,3.94349209]
[1772981631619,18.82263458,82.289,82.24,3.94349209]
[1772981631821,18.82254954,82.287,82.24,3.94349209]
[1772981632022,18.82254954,82.285,82.24,3.94349209]
[1772981632215,28.63951487,82.284,82.243,10.943]
[1772981632417,9.81696533,82.283,82.243,10.943]
[1772981632722,9.81696533,82.282,82.243,10.943]
[1772981633021,9.81696533,82.281,82.243,10.943]
[1772981633219,9.81696533,82.28,82.243,10.943]
[1772981633417,18.82254954,82.284,82.243,10.943]
[1772981633715,3.94349209,82.3,82.251,10.942]
[1772981633921,9.81359784,82.292,82.251,10.942]
[1772981634123,9.81359784,82.291,82.251,10.942]
[1772981634322,10.935,82.308,82.251,10.942]
[1772981634323,18.82945667,82.292,82.251,10.942]
[1772981634622,28.64294454,82.291,82.251,10.942]
[1772981634822,18.82945667,82.291,82.251,10.942]
[1772981636026,18.84360845,82.289,82.251,10.942]
[1772981636825,18.84360845,82.289,82.2,29.64925188]
[1772981637020,18.91274619,82.287,82.23,3.94349209]
[1772981637221,18.91274619,82.285,82.23,3.94349209]
[1772981637417,18.91274619,82.283,82.23,3.94349209]
[1772981637622,18.91293517,82.281,82.23,3.94349209]
[1772981638528,18.91293517,82.281,82.24,3.94349209]
[1772981638729,18.91293517,82.281,82.23,3.94349209]
[1772981639522,18.91293517,82.281,82.24,3.94349209]
[1772981641918,18.91293517,82.281,82.24,14.88749209]
[1772981642118,11.18154456,82.302,82.26,3.94349209]
[1772981642327,9.81267893,82.301,82.27,3.94349209]
[1772981642524,9.81267893,82.3,82.27,3.94349209]